bitfinex/quotes_BTCUSD_20230101
["timestamp","ask_amount","ask_price","bid_price","bid_amount"]
[1672586096269,0.82827126,16561.0,16560.0,7.83727235]
[1672586096519,0.82827126,16561.0,16560.0,7.76205235]
[1672586097242,0.82827126,16561.0,16560.0,8.76396235]
[1672586099271,0.82827126,16561.0,16560.0,8.46205235]
[1672586099484,0.82827126,16561.0,16560.0,8.76397235]
[1672586100760,0.82827126,16561.0,16560.0,8.46205235]
[1672586104002,0.82827126,16561.0,16560.0,8.46199047]
[1672586104983,0.46585429,16561.0,16560.0,7.76199047]
[1672586105783,0.46585429,16561.0,16560.0,8.46199047]
[1672586106036,0.82821948,16561.0,16560.0,8.46199047]
[1672586106272,0.46585429,16561.0,16560.0,8.46199047]
[1672586111036,0.46585429,16561.0,16560.0,8.76392047]
[1672586113436,0.82816501,16561.0,16560.0,8.76392047]
[1672586117604,0.82816501,16561.0,16560.0,8.06392047]
[1672586118693,0.82816501,16561.0,16560.0,8.76392047]
[1672586123887,0.82816501,16561.0,16560.0,8.46199047]
[1672586124135,0.82816501,16561.0,16560.0,8.76392047]
[1672586125915,0.82816501,16561.0,16560.0,8.7638388]
[1672586126388,0.82816501,16561.0,16560.0,8.4619088]
[1672586127981,0.82816501,16561.0,16560.0,7.7619088]
[1672586129025,0.82816501,16561.0,16560.0,8.4619088]
[1672586129530,1.09987186,16561.0,16560.0,8.4619088]
[1672586129796,0.82816501,16561.0,16560.0,8.4619088]
[1672586133140,0.82816501,16561.0,16560.0,8.7638388]
[1672586134952,0.82816501,16561.0,16560.0,8.0638388]
[1672586135945,0.82816501,16561.0,16560.0,8.7638388]
[1672586140334,0.82816501,16561.0,16560.0,8.4619088]
[1672586140957,0.82816501,16561.0,16560.0,8.7638388]
[1672586141981,0.82816501,16561.0,16560.0,8.0638388]
[1672586142991,0.82816501,16561.0,16560.0,8.7638388]
[1672586144735,0.82816501,16561.0,16560.0,8.4619088]
[1672586145230,1.08686529,16561.0,16560.0,8.4619088]
[1672586146483,0.46585429,16561.0,16560.0,8.4619088]
[1672586147085,0.46585429,16561.0,16560.0,8.46184258]
[1672586150298,0.82810131,16561.0,16560.0,8.46184258]
[1672586150889,0.82810116,16561.0,16560.0,8.46184258]
[1672586152687,0.82810116,16561.0,16560.0,7.76184258]
[1672586152891,1.44911216,16561.0,16560.0,7.76184258]
[1672586153688,1.44911216,16561.0,16560.0,8.46184258]
[1672586153689,1.08686529,16561.0,16560.0,8.46184258]
[1672586153966,0.82810976,16561.0,16560.0,8.46184258]
[1672586157886,0.82810976,16561.0,16560.0,8.46261572]
[1672586159794,0.82810976,16561.0,16560.0,7.76261572]
[1672586160056,0.82810976,16561.0,16560.0,8.16827673]
[1672586160906,0.82810976,16561.0,16560.0,8.86827673]
[1672586161192,0.82810976,16561.0,16560.0,8.46261572]
[1672586166997,0.82810976,16561.0,16560.0,7.76261572]
[1672586167247,1.44912076,16561.0,16560.0,8.18115461]
[1672586167492,1.44912076,16561.0,16560.0,7.76261572]
[1672586167759,1.44912076,16561.0,16560.0,8.46261572]
[1672586167993,0.82810976,16561.0,16560.0,8.46261572]
[1672586168249,0.82810976,16561.0,16560.0,8.46255062]
[1672586171029,0.46585429,16561.0,16560.0,8.46255062]
[1672586173813,0.46585429,16561.0,16560.0,7.76255062]
[1672586174554,0.82813406,16561.0,16560.0,7.76255062]
[1672586174801,1.44914506,16561.0,16560.0,8.88485414]
[1672586175049,0.82813406,16561.0,16560.0,8.88485414]
[1672586175287,0.82813406,16561.0,16560.0,8.46255062]
[1672586179471,0.46585429,16561.0,16560.0,8.46255062]
[1672586180762,0.46585429,16561.0,16560.0,7.76255062]
[1672586181019,1.08686529,16561.0,16560.0,7.76255062]
[1672586181842,1.08686529,16561.0,16560.0,8.46255062]
[1672586182090,0.46585429,16561.0,16560.0,8.46255062]
[1672586183298,0.46585429,16561.0,16560.0,8.88485414]
[1672586183548,0.8281727,16561.0,16560.0,8.88485414]
[1672586183800,0.8281727,16561.0,16560.0,8.46255062]
[1672586184552,0.46585429,16561.0,16560.0,8.46255062]
[1672586184807,0.46585429,16561.0,16560.0,8.88485414]
[1672586185028,0.46585429,16561.0,16560.0,8.46255062]
[1672586187862,0.46585429,16561.0,16560.0,7.76255062]
[1672586188857,0.46585429,16561.0,16560.0,8.46255062]
[1672586190565,0.46585429,16561.0,16560.0,8.46248195]
[1672586191984,0.46585429,16561.0,16560.0,8.88478547]
[1672586191985,0.82820503,16561.0,16560.0,8.88478547]
[1672586192974,0.82820503,16561.0,16560.0,9.18671547]
[1672586193228,0.46585429,16561.0,16560.0,8.76441195]
[1672586193718,0.46585429,16561.0,16560.0,8.46248195]
[1672586194421,0.82820621,16561.0,16560.0,8.88478547]
[1672586194664,0.82820621,16561.0,16560.0,8.18478547]
[1672586195748,0.82820621,16561.0,16560.0,8.88478547]
[1672586196792,0.82820621,16561.0,16560.0,8.46248195]
[1672586197013,0.82820621,16561.0,16560.0,8.88478547]
[1672586200059,1.09994346,16561.0,16560.0,8.88478547]
[1672586200524,1.44921721,16561.0,16560.0,8.88478547]
[1672586201813,0.82820621,16561.0,16560.0,8.18478547]
[1672586202119,1.44921721,16561.0,16560.0,8.18478547]
[1672586202625,1.44921721,16561.0,16560.0,8.88478547]
[1672586202869,0.82820621,16561.0,16560.0,8.88478547]
[1672586205300,1.44921721,16561.0,16560.0,8.88478547]
[1672586205813,1.44912381,16561.0,16560.0,8.88478547]
[1672586207064,1.44912381,16561.0,16560.0,9.18669547]
[1672586207309,1.08677189,16561.0,16560.0,9.18669547]
[1672586208543,1.08677189,16561.0,16560.0,7.76248195]
[1672586209518,1.08677189,16561.0,16560.0,8.46248195]
[1672586210507,1.08677189,16561.0,16560.0,8.88478547]
[1672586210769,0.46576089,16561.0,16560.0,8.46248195]
[1672586211281,0.46576089,16561.0,16560.0,8.76439195]
[1672586212523,0.82802765,16561.0,16560.0,9.18669547]
[1672586212747,0.82802765,16561.0,16560.0,8.46248195]
[1672586213024,0.82802765,16561.0,16560.0,9.18670547]
[1672586215025,0.82802765,16561.0,16560.0,8.76440195]
[1672586215268,0.82802765,16561.0,16560.0,8.46248195]
[1672586215506,0.46576089,16561.0,16560.0,8.46248195]
[1672586216754,1.08677189,16561.0,16560.0,8.46248195]
[1672586217737,0.634011,16561.0,16560.0,8.46248195]
[1672586217987,1.08680094,16561.0,16560.0,8.46248195]
[1672586220052,0.634011,16561.0,16560.0,8.46248195]
[1672586224999,1.0867397,16561.0,16560.0,8.46248195]
[1672586225496,0.634011,16561.0,16560.0,8.46248195]
[1672586225748,1.08673511,16561.0,16560.0,8.46248195]
[1672586226642,1.08673511,16561.0,16560.0,7.76248195]
[1672586226866,1.08673511,16561.0,16560.0,7.76241329]
[1672586227294,1.08673511,16561.0,16560.0,8.46241329]
[1672586228710,1.08673511,16561.0,16560.0,8.16241329]
[1672586229209,0.46572411,16561.0,16560.0,8.46241329]
[1672586230998,0.82787736,16561.0,16560.0,8.46241329]
[1672586231259,1.08673511,16561.0,16560.0,8.46241329]
[1672586231756,1.44888624,16561.0,16560.0,8.46241329]
[1672586233332,1.44888624,16561.0,16560.0,7.76241329]
[1672586234376,1.44888624,16561.0,16560.0,8.46241329]
[1672586234619,0.82787524,16561.0,16560.0,8.46241329]
[1672586240735,1.44888624,16561.0,16560.0,8.46241329]
[1672586241721,0.82787524,16561.0,16560.0,8.46241329]
[1672586241980,0.82787524,16561.0,16560.0,7.76241329]
[1672586242247,0.82787524,16561.0,16560.0,8.18471681]
[1672586243014,0.82787524,16561.0,16560.0,8.88471681]
[1672586247545,0.82787524,16561.0,16560.0,8.88464048]
[1672586248038,0.82787524,16561.0,16560.0,8.46233696]
[1672586248274,0.82787524,16561.0,16560.0,8.88464048]
[1672586248820,0.82787524,16561.0,16560.0,8.46233696]
[1672586249072,0.82787524,16561.0,16560.0,7.76233696]
[1672586249303,0.82787524,16561.0,16560.0,8.18464048]
[1672586250039,0.82787524,16561.0,16560.0,8.88464048]
[1672586251283,0.82787524,16561.0,16560.0,8.46233696]
[1672586251537,0.82787524,16561.0,16560.0,8.88464048]
[1672586253015,0.82787524,16561.0,16560.0,9.18657048]
[1672586253255,0.82787524,16561.0,16560.0,8.76426696]
[1672586253768,0.82787524,16561.0,16560.0,9.18657048]
[1672586254542,0.82787524,16561.0,16560.0,8.76426696]
[1672586255819,0.82787524,16561.0,16560.0,9.18657048]
[1672586256074,0.82787524,16561.0,16560.0,8.48657048]
[1672586257113,0.82787524,16561.0,16560.0,9.18657048]
[1672586257370,0.82787524,16561.0,16560.0,8.46233696]
[1672586263084,0.82787524,16561.0,16560.0,7.76233696]
[1672586263331,0.82787524,16561.0,16560.0,8.18464048]
[1672586264056,0.82787524,16561.0,16560.0,8.88464048]
[1672586264275,0.82787524,16561.0,16560.0,8.46233696]
[1672586264508,0.46572411,16561.0,16560.0,8.46233696]
[1672586264725,0.82796998,16561.0,16560.0,8.46233696]
[1672586265215,0.46572411,16561.0,16560.0,8.46233696]
[1672586267643,0.46572411,16561.0,16560.0,8.46225223]
[1672586268221,0.46583945,16561.0,16560.0,8.46147909]
[1672586268730,0.46572411,16561.0,16560.0,8.46147909]
[1672586270004,0.46572411,16561.0,16560.0,7.76147909]
[1672586271014,0.46572411,16561.0,16560.0,8.46147909]
[1672586276982,0.46572411,16561.0,16560.0,7.76147909]
[1672586277466,0.013,16561.0,16560.0,7.76147909]
[1672586277954,0.013,16561.0,16560.0,8.46147909]
[1672586279585,0.01290372,16561.0,16560.0,8.46147909]
[1672586281347,0.46575203,16561.0,16560.0,8.46147909]
[1672586284096,0.46575203,16561.0,16560.0,7.76147909]
[1672586284338,1.08676303,16561.0,16560.0,7.76147909]
[1672586285138,1.08676303,16561.0,16560.0,8.46147909]
[1672586285378,0.46575203,16561.0,16560.0,8.46147909]
[1672586285880,0.46575203,16561.0,16560.0,8.88378261]
[1672586286348,0.46575203,16561.0,16560.0,9.18571261]
[1672586286836,0.82803831,16561.0,16560.0,9.18571261]
[1672586290642,0.82803831,16561.0,16560.0,9.18570261]
[1672586291615,0.82803831,16561.0,16560.0,8.76339909]
[1672586292647,0.46575203,16561.0,16560.0,8.46147909]
[1672586292904,0.46575203,16561.0,16560.0,7.76147909]
[1672586293412,1.08676303,16561.0,16560.0,7.76147909]
[1672586293922,1.08676303,16561.0,16560.0,8.46147909]
[1672586294164,0.46575203,16561.0,16560.0,8.46147909]
[1672586298890,0.82805126,16561.0,16560.0,8.88378261]
[1672586299134,0.46575203,16561.0,16560.0,8.46147909]
[1672586300538,0.82804875,16561.0,16560.0,8.46147909]
[1672586301355,0.82804875,16561.0,16560.0,8.88378261]
[1672586303199,0.82804875,16561.0,16560.0,8.88368114]
[1672586305022,0.82804875,16561.0,16560.0,8.18368114]
[1672586306033,0.82804875,16561.0,16560.0,8.88368114]
[1672586312156,0.82804875,16561.0,16560.0,8.18368114]
[1672586313132,0.82804875,16561.0,16560.0,8.88368114]
[1672586313377,0.82804875,16561.0,16560.0,8.46137762]
[1672586316107,0.82804875,16561.0,16560.0,8.76330762]
[1672586319051,0.82804875,16561.0,16560.0,8.06330762]
[1672586319305,1.44896744,16561.0,16560.0,8.48561114]
[1672586319562,1.44896744,16561.0,16560.0,8.06330762]
[1672586320062,1.44896744,16561.0,16560.0,8.76330762]
[1672586320566,0.82795644,16561.0,16560.0,8.76330762]
[1672586321329,0.46565972,16561.0,16560.0,8.76330762]
[1672586322289,0.82799161,16561.0,16560.0,8.76330762]
[1672586322553,0.82799161,16561.0,16560.0,8.46137762]
[1672586324348,0.82799161,16561.0,16560.0,8.76330762]
[1672586324833,0.82799161,16561.0,16560.0,9.18561114]
[1672586326111,0.82799161,16561.0,16560.0,8.48561114]
[1672586326379,0.82799161,16561.0,16560.0,8.48558114]
[1672586327162,1.44900261,16561.0,16560.0,9.18558114]
[1672586327383,0.82799161,16561.0,16560.0,9.18558114]
[1672586327639,0.46565972,16561.0,16560.0,8.76329762]
[1672586327897,0.82802163,16561.0,16560.0,9.18560114]
[1672586328136,0.82802163,16561.0,16560.0,8.76329762]
[1672586328646,0.82802075,16561.0,16560.0,8.76329762]
[1672586328898,0.46565972,16561.0,16560.0,8.76329762]
[1672586329156,0.82801971,16561.0,16560.0,9.18560114]
[1672586329420,0.82801971,16561.0,16560.0,8.76329762]
[1672586329708,0.82801971,16561.0,16560.0,9.18560114]
[1672586329709,1.44903071,16561.0,16560.0,9.18560114]
[1672586330391,0.82801971,16561.0,16560.0,9.18560114]
[1672586331345,0.82801971,16561.0,16560.0,8.88368114]
[1672586331595,0.82801971,16561.0,16560.0,9.18561114]
[1672586333041,0.82801971,16561.0,16560.0,8.06330762]
[1672586333303,1.44903071,16561.0,16560.0,7.76137762]
[1672586333616,1.08667072,16561.0,16560.0,7.76137762]
[1672586334098,1.08667072,16561.0,16560.0,8.46137762]
[1672586334310,0.46565972,16561.0,16560.0,8.46137762]
[1672586334557,0.46324042,16561.0,16560.0,8.46137762]
[1672586340217,0.46324042,16561.0,16560.0,7.76137762]
[1672586340467,1.08425142,16561.0,16560.0,7.76137762]
[1672586340973,1.08425142,16561.0,16560.0,8.46137762]
[1672586341285,0.46324042,16561.0,16560.0,8.46137762]
[1672586342067,0.46219111,16561.0,16560.0,8.46137762]
[1672586342612,0.46219111,16561.0,16560.0,6.64978562]
[1672586342833,1.08320211,16561.0,16560.0,8.46137762]
[1672586343074,0.46219111,16561.0,16560.0,8.88368114]
[1672586343318,0.46219111,16561.0,16560.0,8.46137762]
[1672586344054,0.4611418,16561.0,16560.0,8.46137762]
[1672586347198,0.4611418,16561.0,16560.0,7.76137762]
[1672586348165,0.4611418,16561.0,16560.0,8.46137762]
[1672586349147,0.46009249,16561.0,16560.0,8.46137762]
[1672586350139,0.45904318,16561.0,16560.0,8.46137762]
[1672586354209,0.45904318,16561.0,16560.0,7.76137762]
[1672586355040,0.45904318,16561.0,16560.0,8.46137762]
[1672586356986,0.45799387,16561.0,16560.0,8.46137762]
[1672586358533,0.45799387,16561.0,16560.0,8.88368114]
[1672586358795,0.82032866,16561.0,16560.0,8.95890114]
[1672586359054,0.45694456,16561.0,16560.0,8.88368114]
[1672586359541,0.81928179,16561.0,16560.0,8.88368114]
[1672586360033,0.81823248,16561.0,16560.0,8.46137762]
[1672586360277,0.45589525,16561.0,16560.0,8.88368114]
[1672586360530,0.45589525,16561.0,16560.0,8.46137762]
[1672586361040,0.45589525,16561.0,16560.0,7.76137762]
[1672586362052,0.45484594,16561.0,16560.0,8.46137762]
[1672586362874,0.45379663,16561.0,16560.0,8.46137762]
[1672586363153,0.45379663,16561.0,16560.0,8.88368114]
[1672586364200,0.45274732,16561.0,16560.0,8.88368114]
[1672586364618,0.81508076,16561.0,16560.0,8.88368114]
[1672586365126,0.81508076,16561.0,16560.0,9.18560114]
[1672586365405,0.81508076,16561.0,16560.0,8.83851762]
[1672586365684,0.81508076,16561.0,16560.0,9.18560114]
[1672586365943,0.45169801,16561.0,16560.0,8.76329762]
[1672586366188,0.45169801,16561.0,16560.0,9.18560114]
[1672586368178,0.45169801,16561.0,16560.0,8.48560114]
[1672586368925,0.45169801,16561.0,16560.0,8.06329762]
[1672586369180,0.45169801,16561.0,16560.0,8.76329762]
[1672586369427,0.45169801,16561.0,16560.0,9.18560114]
[1672586370868,0.45169801,16561.0,16560.0,8.76329762]
[1672586372104,0.45169801,16561.0,16560.0,8.76330762]
[1672586373101,0.4506487,16561.0,16560.0,8.76330762]
[1672586373659,0.4506487,16561.0,16560.0,8.46137762]
[1672586374879,0.54336047,16562.0,16560.0,8.46137762]
[1672586375170,0.54336047,16562.0,16561.0,0.98438262]
[1672586375383,0.54336047,16562.0,16561.0,2.19203862]
[1672586376382,0.62836047,16562.0,16561.0,2.19703862]
[1672586376626,0.62836047,16562.0,16561.0,1.69703862]
[1672586388077,0.62731114,16562.0,16561.0,1.69703862]
[1672586389993,0.62626174,16562.0,16561.0,1.69703862]
[1672586390955,0.62521232,16562.0,16561.0,1.69703862]
[1672586392053,0.6241629,16562.0,16561.0,1.69703862]
[1672586392939,0.62311348,16562.0,16561.0,1.69703862]
[1672586393961,0.62206406,16562.0,16561.0,1.69703862]
[1672586395156,0.62101464,16562.0,16561.0,1.69703862]
[1672586395984,0.6199933,16562.0,16561.0,1.69703862]
[1672586396952,0.61897196,16562.0,16561.0,1.69703862]
[1672586398136,0.61795062,16562.0,16561.0,1.69703862]
[1672586398831,0.61795062,16562.0,16561.0,2.26933386]
[1672586399320,0.61692928,16562.0,16561.0,2.26933386]
[1672586399855,0.61590794,16562.0,16561.0,2.26933386]
[1672586401101,0.61485852,16562.0,16561.0,2.26933386]
[1672586402010,0.6138091,16562.0,16561.0,2.26933386]
[1672586403286,0.61275968,16562.0,16561.0,2.26933386]
[1672586404367,0.61171026,16562.0,16561.0,2.26933386]
[1672586405072,0.61066084,16562.0,16561.0,2.26933386]
[1672586405336,0.61066084,16562.0,16561.0,2.26475786]
[1672586406072,0.60961142,16562.0,16561.0,2.26475786]
[1672586406948,0.608562,16562.0,16561.0,2.26475786]
[1672586408211,0.60751258,16562.0,16561.0,2.26475786]
[1672586409227,0.60646316,16562.0,16561.0,2.26475786]
[1672586410287,0.60541374,16562.0,16561.0,2.26475786]
[1672586411337,0.60436432,16562.0,16561.0,2.26475786]
[1672586412326,0.6033149,16562.0,16561.0,2.26475786]
[1672586413054,0.60226548,16562.0,16561.0,2.26475786]
[1672586414134,0.60121606,16562.0,16561.0,2.26475786]
[1672586415110,0.60016664,16562.0,16561.0,2.26475786]
[1672586416165,0.59911722,16562.0,16561.0,2.26475786]
[1672586416944,0.5980678,16562.0,16561.0,2.26475786]
[1672586418208,0.59701838,16562.0,16561.0,2.26475786]
[1672586419160,0.59596896,16562.0,16561.0,2.26475786]
[1672586420158,0.59491954,16562.0,16561.0,2.26475786]
[1672586421153,0.59387012,16562.0,16561.0,2.26475786]
[1672586421894,0.706011,16562.0,16561.0,2.26475786]
[1672586422156,0.70496158,16562.0,16561.0,2.26475786]
[1672586422398,0.70496158,16562.0,16561.0,2.26553096]
[1672586423170,0.08290116,16562.0,16561.0,2.26553096]
[1672586424130,0.08185174,16562.0,16561.0,2.26553096]
[1672586425168,0.08080232,16562.0,16561.0,2.26553096]
[1672586425929,0.0797529,16562.0,16561.0,2.26553096]
[1672586426960,0.07870348,16562.0,16561.0,2.26553096]
[1672586427226,0.62232965,16562.0,16561.0,2.26553096]
[1672586427457,1.24334065,16562.0,16561.0,2.26553096]
[1672586427972,1.24229123,16562.0,16561.0,2.26553096]
[1672586428974,1.24124181,16562.0,16561.0,2.26553096]
[1672586430005,1.24019239,16562.0,16561.0,2.26553096]
[1672586430984,1.23914297,16562.0,16561.0,2.26553096]
[1672586431988,1.23809355,16562.0,16561.0,2.26553096]
[1672586433150,1.23704413,16562.0,16561.0,2.26553096]
[1672586434168,1.23599471,16562.0,16561.0,2.26553096]
[1672586435032,1.23494529,16562.0,16561.0,2.26553096]
[1672586436078,1.23389587,16562.0,16561.0,2.26553096]
[1672586437097,1.23284645,16562.0,16561.0,2.26553096]
[1672586438114,1.23179703,16562.0,16561.0,2.26553096]
[1672586439124,1.23074761,16562.0,16561.0,2.26553096]
[1672586440111,1.22969819,16562.0,16561.0,2.26553096]
[1672586441112,1.22864877,16562.0,16561.0,2.26553096]
[1672586442189,1.22759935,16562.0,16561.0,2.26553096]
[1672586442992,1.22654993,16562.0,16561.0,2.26553096]
[1672586443972,1.22550051,16562.0,16561.0,2.26553096]
[1672586445026,1.22445109,16562.0,16561.0,2.26553096]
[1672586448745,0.60344009,16562.0,16561.0,2.26553096]
[1672586449723,1.22445109,16562.0,16561.0,2.26553096]
[1672586454303,0.68082492,16562.0,16561.0,2.26553096]
[1672586454550,0.60349398,16562.0,16561.0,2.26553096]
[1672586454797,1.22450498,16562.0,16561.0,2.26553096]
[1672586455821,0.68082492,16562.0,16561.0,2.26553096]
[1672586458097,0.05981392,16562.0,16561.0,2.26553096]
[1672586458337,0.68082492,16562.0,16561.0,2.26553096]
[1672586458584,1.22449397,16562.0,16561.0,2.26553096]
[1672586461782,1.22448773,16562.0,16561.0,2.26553096]
[1672586463790,0.68082492,16562.0,16561.0,2.26553096]
[1672586466093,0.68082492,16562.0,16561.0,2.26544292]
[1672586466728,1.22448105,16562.0,16561.0,2.26544292]
[1672586467185,0.68082492,16562.0,16561.0,2.26544292]
[1672586467467,0.60348071,16562.0,16561.0,2.26544292]
[1672586467706,1.22449518,16562.0,16561.0,2.26544292]
[1672586471239,1.22449518,16562.0,16561.0,2.26466982]
[1672586473353,0.68082492,16562.0,16561.0,2.26466982]
[1672586473850,0.68094026,16562.0,16561.0,2.26466982]
[1672586474101,0.68082492,16562.0,16561.0,2.26466982]
[1672586475114,0.05992926,16562.0,16561.0,2.26466982]
[1672586475359,0.05981392,16562.0,16561.0,2.26466982]
[1672586479546,0.68082492,16562.0,16561.0,2.26466982]
[1672586481934,0.68082492,16562.0,16561.0,2.26544292]
[1672586482685,1.53245715,16562.0,16561.0,0.005]
[1672586483028,0.68094026,16562.0,16561.0,0.005]
[1672586483709,2.46052942,16562.0,16561.0,0.005]
[1672586483978,3.11032812,16562.0,16561.0,0.005]
[1672586484732,2.2204694,16562.0,16561.0,0.005]
[1672586485234,2.16065548,16562.0,16560.0,4.53018516]
[1672586485481,1.121011,16561.0,16560.0,4.53018516]
[1672586485720,2.66114176,16561.0,16560.0,4.53018516]
[1672586487255,2.66114176,16561.0,16560.0,4.53008947]
[1672586487507,3.26496976,16561.0,16560.0,4.53008947]
[1672586488240,3.36496976,16561.0,16560.0,4.53408947]
[1672586491500,3.97430421,16561.0,16560.0,4.53408947]
[1672586493489,4.43212527,16561.0,16560.0,4.53408947]
[1672586493758,3.97430421,16561.0,16560.0,4.53408947]
[1672586494006,3.36496976,16561.0,16560.0,4.53408947]
[1672586494769,3.97401641,16561.0,16560.0,4.53408947]
[1672586505551,3.87401641,16561.0,16560.0,4.53008947]
[1672586505795,3.97401641,16561.0,16560.0,4.53408947]
[1672586506548,4.43180868,16561.0,16560.0,4.53408947]
[1672586511546,3.82276203,16561.0,16560.0,4.53408947]
[1672586511794,3.82276203,16561.0,16560.0,4.53401658]
[1672586511795,3.83126203,16561.0,16560.0,4.53401658]
[1672586513578,3.83073079,16561.0,16560.0,4.53401658]
[1672586513827,3.49878727,16561.0,16560.0,4.53401658]
[1672586514341,3.83108698,16561.0,16560.0,4.53401658]
[1672586517039,3.83096703,16561.0,16560.0,4.53401658]
[1672586519800,3.37317476,16561.0,16560.0,4.53401658]
[1672586520323,3.04087505,16561.0,16560.0,4.53401658]
[1672586522388,3.37301457,16561.0,16560.0,4.53401658]
[1672586522882,4.26287329,16561.0,16560.0,4.53401658]
[1672586526783,4.26279163,16561.0,16560.0,4.53401658]
[1672586527020,4.74946143,16561.0,16560.0,4.53401658]
[1672586530322,5.04946143,16561.0,16560.0,4.53401658]
[1672586530577,5.05107138,16561.0,16560.0,4.53401658]
[1672586530819,4.75105759,16561.0,16560.0,4.53401658]
[1672586531062,3.85960271,16561.0,16560.0,4.53401658]
[1672586531313,4.15960271,16561.0,16560.0,4.53401658]
[1672586532525,3.85960271,16561.0,16560.0,4.53401658]
[1672586532780,4.15960271,16561.0,16560.0,4.53401658]
[1672586534036,3.82754485,16561.0,16560.0,4.53401658]
[1672586534277,4.1594972,16561.0,16560.0,4.53401658]
[1672586540972,4.1594972,16561.0,16560.0,4.53392767]
[1672586541672,4.0594972,16561.0,16560.0,4.52992767]
[1672586541919,4.1944972,16561.0,16560.0,4.52992767]
[1672586557540,4.1944972,16561.0,16560.0,4.19613867]
[1672586557809,5.19161274,16561.0,16560.0,4.19613867]
[1672586558064,5.17334179,16561.0,16560.0,4.19613867]
[1672586558318,5.19161274,16561.0,16560.0,4.19613867]
[1672586558567,5.05661274,16561.0,16560.0,4.19613867]
[1672586558839,5.19161274,16561.0,16560.0,4.19613867]
[1672586559350,4.21276815,16561.0,16560.0,4.19613867]
[1672586561260,4.1944972,16561.0,16560.0,4.19613867]
[1672586563341,3.06737505,16561.0,16560.0,4.19613867]
[1672586564832,3.37587505,16561.0,16560.0,4.19613867]
[1672586568338,3.07587505,16561.0,16560.0,4.19613867]
[1672586568595,2.45486405,16561.0,16560.0,4.19613867]
[1672586569388,3.07587505,16561.0,16560.0,4.19613867]
[1672586570971,3.44385459,16561.0,16560.0,4.19613867]
[1672586571780,3.07587505,16561.0,16560.0,4.19613867]
[1672586576798,3.37587505,16561.0,16560.0,4.19613867]
[1672586577294,3.07587505,16561.0,16560.0,4.19613867]
[1672586579204,3.427847,16561.0,16560.0,4.19613867]
[1672586579457,3.37587505,16561.0,16560.0,4.19613867]
[1672586579946,3.77385459,16561.0,16560.0,4.19613867]
[1672586580449,3.77385459,16561.0,16560.0,4.19602354]
[1672586581286,3.47385459,16561.0,16560.0,4.19602354]
[1672586582498,3.77385459,16561.0,16560.0,4.19602354]
[1672586583423,4.12565575,16561.0,16560.0,4.19602354]
[1672586583685,4.12565563,16561.0,16560.0,4.19602354]
[1672586583904,3.77385459,16561.0,16560.0,4.19602354]
[1672586585165,3.47385459,16561.0,16560.0,4.19602354]
[1672586587690,3.77385459,16561.0,16560.0,4.19602354]
[1672586589207,3.47385459,16561.0,16560.0,4.19602354]
[1672586591016,3.82554939,16561.0,16560.0,4.19602354]
[1672586591298,4.12554939,16561.0,16560.0,4.19602354]
[1672586591813,4.12548778,16561.0,16560.0,4.19602354]
[1672586592101,3.77385459,16561.0,16560.0,4.19602354]
[1672586602142,3.77385459,16561.0,16560.0,4.19590364]
[1672586608382,4.12555613,16561.0,16560.0,4.19590364]
[1672586608952,3.77385459,16561.0,16560.0,4.19590364]
[1672586610855,4.12553834,16561.0,16560.0,4.19590364]
[1672586617272,3.77385459,16561.0,16560.0,4.19590364]
[1672586618843,4.12577451,16561.0,16560.0,4.19590364]
[1672586621433,4.12574891,16561.0,16560.0,4.19590364]
[1672586623431,3.77385459,16561.0,16560.0,4.19590364]
[1672586624972,3.77385459,16561.0,16560.0,4.19584152]
[1672586625988,4.12573366,16561.0,16560.0,4.19584152]
[1672586627730,4.1255887,16561.0,16560.0,4.19584152]
[1672586630336,3.77385459,16561.0,16560.0,4.19584152]
[1672586630587,4.12568248,16561.0,16560.0,4.19584152]
[1672586636574,4.12567086,16561.0,16560.0,4.19584152]
[1672586636832,5.10451545,16561.0,16560.0,4.19584152]
[1672586647146,4.12567086,16561.0,16560.0,4.19584152]
[1672586647433,5.10590244,16561.0,16560.0,3.26526752]
[1672586647687,4.14394181,16561.0,16560.0,0.8169286]
[1672586647963,4.14394181,16561.0,16560.0,0.0723936]
[1672586648192,0.5,16560.0,16559.0,0.00033818]
[1672586648478,5.04949595,16560.0,16559.0,0.00033818]
[1672586649970,5.18449595,16560.0,16559.0,0.00033818]
[1672586651359,4.20428006,16560.0,16559.0,0.00033818]
[1672586652139,4.2043954,16560.0,16559.0,0.00033818]
[1672586668231,3.37621834,16560.0,16559.0,0.00033818]
[1672586668482,3.376103,16560.0,16559.0,0.00033818]
[1672586670388,3.73974374,16560.0,16559.0,0.00033818]
[1672586670889,3.73974374,16560.0,16559.0,0.00026731]
[1672586671889,3.73979367,16560.0,16559.0,0.00026731]
[1672586672131,4.33256023,16560.0,16559.0,0.00026731]
[1672586672840,4.33253812,16560.0,16559.0,0.00026731]
[1672586676294,3.96891949,16560.0,16559.0,0.00026731]
[1672586677833,4.33234135,16560.0,16559.0,0.00026731]
[1672586679620,4.33234497,16560.0,16559.0,0.00026731]
[1672586679874,3.96891949,16560.0,16559.0,0.00026731]
[1672586680134,3.37615293,16560.0,16559.0,0.00026731]
[1672586680407,3.07603759,16560.0,16559.0,0.00026731]
[1672586680652,2.45502659,16560.0,16559.0,0.00026731]
[1672586681665,2.75502659,16560.0,16559.0,0.00026731]
[1672586682433,2.75514193,16560.0,16559.0,0.00026731]
[1672586682965,3.09103892,16560.0,16559.0,0.00026731]
[1672586683198,3.71099997,16560.0,16559.0,0.00026731]
[1672586684786,3.07510298,16560.0,16559.0,0.00026731]
[1672586689476,3.37510298,16560.0,16559.0,0.00026731]
[1672586692079,3.37405303,16560.0,16559.0,0.00026731]
[1672586692607,3.37393769,16560.0,16559.0,0.00026731]
[1672586693236,3.07393769,16560.0,16559.0,0.00026731]
[1672586693489,3.37393769,16560.0,16559.0,0.00026731]
[1672586694208,3.77171426,16560.0,16559.0,0.00026731]
[1672586696272,3.7718296,16560.0,16559.0,0.00026731]
[1672586697140,3.77077965,16560.0,16559.0,0.00026731]
[1672586698056,3.7697297,16560.0,16559.0,0.00026731]
[1672586702227,3.76870582,16560.0,16559.0,0.00026731]
[1672586711359,3.76765587,16560.0,16559.0,0.00026731]
[1672586712331,3.76660592,16560.0,16559.0,0.00026731]
[1672586713490,3.76555597,16560.0,16559.0,0.00026731]
[1672586715974,3.3677794,16560.0,16559.0,0.00026731]
[1672586719877,4.71222142,16560.0,16559.0,0.00026731]
[1672586720612,4.34799529,16560.0,16559.0,0.00026731]
[1672586721348,3.3677794,16560.0,16559.0,0.00026731]
[1672586722207,3.36672945,16560.0,16559.0,0.00026731]
[1672586723084,3.86363388,16560.0,16559.0,0.00026731]
[1672586725065,3.86258393,16560.0,16559.0,0.00026731]
[1672586725523,3.3656795,16560.0,16559.0,0.00026731]
[1672586726779,3.73010399,16560.0,16559.0,0.00026731]
[1672586726994,3.3656795,16560.0,16559.0,0.00026731]
[1672586728012,3.73024343,16560.0,16559.0,0.00026731]
[1672586728224,3.3656795,16560.0,16559.0,0.00026731]
[1672586728436,3.86247893,16560.0,16559.0,0.00026731]
[1672586733266,3.86145505,16560.0,16559.0,0.00026731]
[1672586734548,0.5,16559.0,16555.0,1.12894614]